bitfinex/quotes_SOLUSD_20250811
["timestamp","ask_amount","ask_price","bid_price","bid_amount"]
[1754920258292,46.54,179.56,179.5,0.67]
[1754920258293,15.10621557,179.55,179.5,0.67]
[1754920258486,9.42758952,179.54,179.5,0.67]
[1754920258697,15.10621557,179.52,179.51,0.67]
[1754920259163,15.10621557,179.55,179.47,5.63190678]
[1754920259365,9.42758952,179.52,179.48,0.67]
[1754920259587,15.10621557,179.5,179.48,0.67]
[1754920260098,15.10621557,179.53,179.47,0.06]
[1754920260272,6.13978946,179.54,179.47,0.06]
[1754920260273,15.10621557,179.51,179.47,0.73]
[1754920260458,9.42758952,179.5,179.47,0.73]
[1754920260662,15.10621557,179.51,179.48,10.09758952]
[1754920260994,15.10621557,179.51,179.47,0.06]
[1754920260995,24.53380509,179.51,179.47,0.06]
[1754920261299,24.53380509,179.48,179.47,0.06]
[1754920261596,15.10621557,179.48,179.47,0.06]
[1754920262161,20.677867,179.48,179.47,0.06]
[1754920262394,24.53380509,179.48,179.47,0.06]
[1754920262565,15.10621557,179.48,179.47,0.06]
[1754920262772,20.677867,179.48,179.47,0.06]
[1754920263284,30.10545652,179.48,179.47,0.06]
[1754920263486,56.67545652,179.48,179.47,0.06]
[1754920263859,93.237867,179.48,179.47,0.06]
[1754920264084,87.66621557,179.48,179.47,0.06]
[1754920264286,102.66545652,179.48,179.47,0.06]
[1754920264674,103.23545652,179.48,179.47,0.06]
[1754920264880,93.237867,179.48,179.47,0.06]
[1754920265183,15.10621557,179.48,179.47,0.73]
[1754920265974,24.53380509,179.48,179.47,0.06]
[1754920266171,15.10621557,179.48,179.47,0.06]
[1754920267888,15.10621557,179.48,179.47,0.73]
[1754920268065,30.10545652,179.48,179.47,0.06]
[1754920268469,20.677867,179.48,179.47,0.06]
[1754920268967,30.10545652,179.48,179.47,0.06]
[1754920269173,56.67545652,179.48,179.47,0.06]
[1754920269373,56.10545652,179.48,179.47,0.06]
[1754920269600,15.10621557,179.48,179.47,0.06]
[1754920269820,15.10621557,179.48,179.47,0.73]
[1754920270173,15.10621557,179.48,179.47,10.15758952]
[1754920270373,52.11046528,179.52,179.47,10.15758952]
[1754920270374,145.7,179.57,179.47,10.15758952]
[1754920270670,5.56823876,179.59,179.48,0.67]
[1754920270879,46.54,179.58,179.48,0.67]
[1754920271279,15.10621557,179.57,179.53,9.42758952]
[1754920271487,15.10621557,179.55,179.51,0.67]
[1754920271682,15.10621557,179.55,179.47,0.06]
[1754920271893,15.10621557,179.53,179.49,10.09758952]
[1754920272082,15.10621557,179.53,179.49,9.42758952]
[1754920272083,15.10621557,179.51,179.49,9.42758952]
[1754920272289,15.10621557,179.54,179.5,0.67]
[1754920272478,15.10621557,179.54,179.5,10.09758952]
[1754920272682,15.10621557,179.56,179.5,0.67]
[1754920272878,15.10621557,179.55,179.5,10.09758952]
[1754920273095,24.53380509,179.55,179.5,10.09758952]
[1754920273392,15.10621557,179.53,179.5,9.42758952]
[1754920273599,24.53380509,179.54,179.49,9.42758952]
[1754920273806,9.42758952,179.53,179.48,9.42758952]
[1754920273998,9.42758952,179.53,179.48,10.09758952]
[1754920274203,15.10621557,179.55,179.51,9.42758952]
[1754920274389,15.10621557,179.55,179.54,9.42758952]
[1754920274587,15.10621557,179.57,179.52,0.67]
[1754920274783,9.42758952,179.55,179.5,0.67]
[1754920274974,15.10621557,179.56,179.51,9.42758952]
[1754920275173,140.0,179.55,179.52,9.42758952]
[1754920275398,15.10621557,179.54,179.52,10.09758952]
[1754920275610,15.10621557,179.54,179.53,0.67]
[1754920275776,15.10621557,179.54,179.53,10.09758952]
[1754920275975,15.10621557,179.54,179.48,5.57165143]
[1754920276188,15.10621557,179.54,179.51,9.42758952]
[1754920276405,24.53380509,179.54,179.49,0.67]
[1754920276810,15.10621557,179.54,179.51,9.42758952]
[1754920277016,15.10621557,179.54,179.51,10.09758952]
[1754920277225,15.10621557,179.54,179.52,9.42758952]
[1754920277510,20.67603135,179.54,179.51,0.67]
[1754920277677,15.10621557,179.54,179.51,0.67]
[1754920277885,15.10621557,179.54,179.5,9.42758952]
[1754920277886,15.10621557,179.54,179.52,10.14758952]
[1754920278393,15.10621557,179.54,179.53,10.14758952]
[1754920279087,15.10621557,179.54,179.53,15.71768922]
[1754920279700,15.10621557,179.54,179.53,6.2900997]
[1754920280018,15.10621557,179.54,179.53,10.14758952]
[1754920280305,15.10621557,179.54,179.51,0.72]
[1754920280514,15.10621557,179.54,179.51,9.42758952]
[1754920280686,15.10621557,179.54,179.52,9.42758952]
[1754920280888,15.10621557,179.54,179.48,5.57159836]
[1754920281110,15.10621557,179.54,179.48,0.72]
[1754920281296,24.53380509,179.54,179.49,9.42758952]
[1754920281596,15.10621557,179.54,179.5,0.72]
[1754920281795,20.67613068,179.54,179.49,9.42758952]
[1754920281999,30.1037202,179.54,179.49,9.42758952]
[1754920282598,15.10621557,179.52,179.48,0.78]
[1754920282917,15.10621557,179.52,179.49,9.42758952]
[1754920283117,15.10621557,179.52,179.49,0.72]
[1754920283494,5.57058246,179.52,179.49,9.42758952]
[1754920284588,5.5700997,179.53,179.49,9.42758952]
[1754920284792,5.5700997,179.53,179.49,0.72]
[1754920284989,5.5700997,179.53,179.49,10.14758952]
[1754920285193,20.67610069,179.54,179.51,9.42758952]
[1754920285389,20.67610069,179.54,179.51,10.14758952]
[1754920285631,20.67610069,179.54,179.51,0.72]
[1754920286091,20.67610069,179.54,179.5,9.42758952]
[1754920286293,30.67369021,179.54,179.48,0.06]
[1754920286499,15.10621557,179.52,179.49,9.42758952]
[1754920286709,20.67672224,179.52,179.48,9.48758952]
[1754920287129,30.10431176,179.52,179.48,0.06]
[1754920287317,24.53380509,179.5,179.48,0.06]
[1754920287934,15.10621557,179.5,179.48,0.06]
[1754920288340,15.10621557,179.51,179.48,0.06]
[1754920288644,15.10621557,179.55,179.5,9.42758952]
[1754920288845,15.10621557,179.55,179.52,9.42758952]
[1754920289007,15.10621557,179.55,179.52,10.14758952]
[1754920289215,15.10621557,179.55,179.52,0.72]
[1754920289645,15.10621557,179.55,179.52,10.14758952]
[1754920289846,15.10621557,179.55,179.53,9.42758952]
[1754920290135,155.10621557,179.54,179.53,9.42758952]
[1754920290643,155.10621557,179.54,179.52,0.72]
[1754920290850,164.53380509,179.54,179.48,0.78]
[1754920291010,15.10621557,179.53,179.5,9.42758952]
[1754920291335,15.10621557,179.53,179.48,0.78]
[1754920291545,25.10380509,179.53,179.48,9.48758952]
[1754920291840,15.10621557,179.53,179.49,9.42758952]
[1754920292005,15.67621557,179.53,179.48,0.06]
[1754920292340,15.10621557,179.5,179.48,0.06]
[1754920292633,15.10621557,179.52,179.48,0.06]
[1754920292835,15.10621557,179.5,179.48,0.06]
[1754920293129,24.53380509,179.5,179.48,0.06]
[1754920293332,24.53380509,179.49,179.48,0.06]
[1754920293533,15.10621557,179.49,179.48,0.06]
[1754920293903,15.10621557,179.49,179.48,9.48758952]
[1754920294468,15.10621557,179.49,179.48,10.20758952]
[1754920294834,140.0,179.54,179.48,15.77924095]
[1754920295030,15.10621557,179.53,179.49,0.72]
[1754920295266,15.10621557,179.53,179.52,9.42758952]
[1754920295568,15.10621557,179.53,179.5,0.72]
[1754920295733,15.10621557,179.53,179.48,6.411651]
[1754920295933,15.10621557,179.53,179.51,9.42758952]
[1754920296154,15.10621557,179.53,179.48,0.06]
[1754920296353,15.67621557,179.53,179.48,0.06]
[1754920296558,15.67621557,179.53,179.49,9.42758952]
[1754920297160,9.99758952,179.52,179.48,0.06]
[1754920297663,15.10621557,179.5,179.48,0.06]
[1754920297883,9.42758952,179.49,179.48,0.06]
[1754920298069,24.53380509,179.49,179.48,0.06]
[1754920298236,25.10380509,179.49,179.48,0.06]
[1754920298563,15.10621557,179.48,179.47,0.06]
[1754920298766,51.10380509,179.48,179.47,1e-08]
[1754920298969,47.247867,179.48,179.47,1e-08]
[1754920299266,67.077867,179.48,179.47,1e-08]
[1754920299771,15.10621557,179.48,179.47,9.42758953]
[1754920299942,5.57106413,179.5,179.47,9.42758953]
[1754920300269,15.10621557,179.49,179.48,0.72]
[1754920300564,15.10621557,179.52,179.48,10.14758952]
[1754920300763,15.10621557,179.52,179.51,9.42758952]
[1754920300939,15.10621557,179.52,179.49,0.72]
[1754920300940,15.10621557,179.53,179.49,0.72]
[1754920301135,15.10621557,179.51,179.49,0.72]
[1754920301565,15.10621557,179.51,179.5,9.42758952]
[1754920301947,15.10621557,179.51,179.5,10.14758952]
[1754920302144,15.10621557,179.51,179.5,0.72]
[1754920302357,15.10621557,179.51,179.5,10.14758952]
[1754920303149,15.10621557,179.54,179.5,15.71862016]
[1754920303448,15.10621557,179.57,179.51,0.72]
[1754920303771,15.67621557,179.57,179.55,9.42758952]
[1754920304273,15.67621557,179.57,179.5,0.72]
[1754920304274,15.10621557,179.55,179.53,9.42758952]
[1754920304651,15.10621557,179.57,179.54,9.42758952]
[1754920305051,20.67537424,179.57,179.52,0.72]
[1754920305257,21.24537424,179.57,179.54,9.42758952]
[1754920305575,21.24537424,179.57,179.51,5.57065852]
[1754920305768,21.24537424,179.57,179.5,0.72]
[1754920305944,21.24537424,179.57,179.53,9.42758952]
[1754920306142,15.10621557,179.55,179.5,0.72]
[1754920306370,15.10621557,179.55,179.54,9.42758952]
[1754920306571,15.10621557,179.56,179.5,6.29094458]
[1754920306870,20.67537424,179.57,179.55,9.42758952]
[1754920307078,20.67544993,179.56,179.54,9.42758952]
[1754920307246,20.67544993,179.56,179.51,0.72]
[1754920307569,21.24544993,179.56,179.51,0.72]
[1754920307879,21.24544993,179.56,179.49,5.57127139]
[1754920308178,30.67303945,179.56,179.51,9.42758952]
[1754920308377,30.67303945,179.56,179.47,0.70000001]
[1754920308378,15.10621557,179.54,179.47,0.70000001]
[1754920308676,15.10621557,179.54,179.51,9.42758952]
[1754920308845,15.67621557,179.54,179.51,9.42758952]
[1754920309249,15.10621557,179.52,179.51,9.42758952]
[1754920309650,15.10621557,179.52,179.47,0.70000001]
[1754920309850,15.10621557,179.52,179.51,9.42758952]
[1754920310350,5.57060503,179.52,179.47,0.70000001]
[1754920310653,6.14060503,179.52,179.49,9.42758952]
[1754920310850,15.67621557,179.51,179.47,9.42758953]
[1754920311050,61.31819455,179.52,179.47,1e-08]
[1754920311051,24.53380509,179.49,179.47,1e-08]
[1754920311278,61.42621557,179.49,179.47,1e-08]
[1754920311478,25.10380509,179.48,179.47,1e-08]
[1754920311776,15.10621557,179.48,179.47,1e-08]
[1754920311956,15.67621557,179.48,179.47,1e-08]
[1754920312289,20.677867,179.48,179.47,1e-08]
[1754920312450,15.10621557,179.48,179.47,10.12758953]
[1754920313083,15.10621557,179.48,179.47,0.70000001]
[1754920313255,15.10621557,179.48,179.47,10.12758953]
[1754920313583,15.10621557,179.54,179.47,10.12758953]
[1754920313752,15.10621557,179.54,179.53,9.42758952]
[1754920314075,15.67621557,179.54,179.47,1e-08]
[1754920314254,15.10621557,179.52,179.5,9.42758952]
[1754920314946,15.10621557,179.52,179.47,1e-08]
[1754920315150,15.10621557,179.52,179.51,9.42758952]
[1754920315878,15.10621557,179.52,179.47,0.70000001]
[1754920316063,15.10621557,179.52,179.49,9.42758952]
[1754920316570,15.10621557,179.5,179.49,0.7]
[1754920316772,15.10621557,179.5,179.49,10.12758952]
[1754920317453,15.10621557,179.5,179.49,0.7]
[1754920317752,61.36621557,179.5,179.49,0.7]
[1754920318477,66.93724621,179.5,179.49,0.7]
[1754920319479,66.93724621,179.5,179.47,1e-08]
[1754920319783,66.93724621,179.5,179.48,0.7]
[1754920319958,155.10621557,179.49,179.48,0.7]
[1754920320560,160.67755659,179.49,179.48,0.7]
[1754920320756,155.10621557,179.49,179.48,10.12758952]
[1754920321367,160.67755659,179.49,179.48,10.12758952]
[1754920321583,160.67755659,179.49,179.47,1e-08]
[1754920321880,15.10621557,179.48,179.47,1e-08]
[1754920322079,15.67621557,179.48,179.47,1e-08]
[1754920322564,21.247867,179.48,179.47,1e-08]
[1754920322767,20.677867,179.48,179.47,1e-08]
[1754920323069,21.247867,179.48,179.47,1e-08]
[1754920323662,30.67545652,179.48,179.47,1e-08]
[1754920324080,21.247867,179.48,179.47,1e-08]
[1754920324286,30.67545652,179.48,179.47,1e-08]
[1754920325481,30.67545652,179.48,179.43,0.06]
[1754920325482,15.10621557,179.45,179.43,0.06]
[1754920325684,15.10621557,179.43,179.42,0.06]
[1754920325867,50.53380509,179.43,179.42,1e-08]
[1754920326570,56.10700912,179.43,179.42,1e-08]
[1754920327486,46.6794196,179.43,179.32,0.06]
[1754920327686,70.73380509,179.42,179.32,0.06]
[1754920327854,15.10621557,179.42,179.41,9.48758952]
[1754920328058,15.10621557,179.42,179.41,0.06]
[1754920328461,20.67973022,179.42,179.41,0.06]
[1754920328693,66.87973022,179.42,179.41,0.06]
[1754920329062,15.10621557,179.42,179.41,9.48758952]
[1754920329462,15.10621557,179.42,179.41,0.06]
[1754920329791,15.10621557,179.42,179.41,9.48758952]
[1754920330292,5.57109134,179.5,179.41,9.48758952]
[1754920330482,15.10621557,179.49,179.41,0.06]
[1754920330684,15.10621557,179.49,179.48,9.42758952]
[1754920330871,20.67755659,179.49,179.41,5.63382531]
[1754920331070,20.67755659,179.49,179.46,9.42758952]
[1754920331379,15.10621557,179.47,179.41,5.63382531]
[1754920331590,15.10621557,179.47,179.46,9.42758952]
[1754920331975,15.10621557,179.49,179.46,9.42758952]
[1754920332266,15.10621557,179.51,179.48,9.42758952]
[1754920332469,0.57,179.5,179.43,0.7]
[1754920332677,0.57,179.5,179.44,5.57289344]
[1754920332874,15.67621557,179.5,179.48,9.42758952]
[1754920333105,0.57,179.49,179.48,9.42758952]
[1754920333265,15.10621557,179.48,179.44,5.57289344]
[1754920333467,15.10621557,179.48,179.47,9.42758952]
[1754920333962,46.18,179.52,179.47,10.12758952]
[1754920334185,15.10621557,179.51,179.48,0.7]
[1754920334385,15.10621557,179.53,179.5,9.42758952]
[1754920334662,15.10621557,179.51,179.46,6.27222541]
[1754920334965,15.10621557,179.49,179.44,5.57261007]
[1754920335175,15.67621557,179.49,179.43,0.7]
[1754920335407,15.67621557,179.49,179.48,9.42758952]
[1754920335584,15.67621557,179.49,179.43,26.7]
[1754920335781,15.67621557,179.49,179.48,9.42758952]
[1754920336288,15.10621557,179.5,179.48,9.42758952]
[1754920336491,15.67621557,179.5,179.44,6.27289344]
[1754920336678,15.67621557,179.5,179.47,9.42758952]
[1754920336878,0.1,179.49,179.47,9.42758952]
[1754920337080,140.1,179.49,179.47,9.42758952]
[1754920337480,15.20621557,179.48,179.42,32.23348784]
[1754920337803,15.10621557,179.5,179.47,9.42758952]
[1754920337974,15.10621557,179.51,179.48,9.42758952]
[1754920338174,20.67710033,179.51,179.48,9.42758952]
[1754920338371,5.57043326,179.52,179.41,5.63375967]
[1754920338597,15.10621557,179.52,179.51,9.42758952]
[1754920338975,15.20621557,179.53,179.51,9.42758952]
[1754920339280,0.1,179.52,179.45,0.66]
[1754920339468,5.67070517,179.52,179.45,6.23245424]
[1754920339673,5.67070517,179.52,179.49,9.42758952]
[1754920339874,20.67637099,179.53,179.45,5.57245424]
[1754920340196,20.67637099,179.53,179.52,9.42758952]
[1754920340380,20.67637099,179.53,179.47,0.66]
[1754920340581,15.10621557,179.51,179.47,0.66]
[1754920340789,15.10621557,179.51,179.5,9.42758952]
[1754920341295,15.10621557,179.51,179.47,6.23173411]
[1754920341489,15.10621557,179.51,179.5,9.42758952]
[1754920341980,15.10621557,179.51,179.48,0.66]
[1754920342296,15.10621557,179.51,179.5,9.42758952]
[1754920342901,15.10621557,179.51,179.46,5.57219767]
[1754920343203,15.10621557,179.51,179.47,6.23193165]
[1754920343397,15.10621557,179.51,179.5,9.42758952]
[1754920343595,15.10621557,179.51,179.47,5.57193165]
[1754920343772,15.10621557,179.51,179.45,13.93115791]
[1754920343773,15.10621557,179.51,179.45,5.57258289]
[1754920343973,15.10621557,179.49,179.42,0.66]
[1754920344176,15.10621557,179.47,179.42,6.23351465]
[1754920344474,15.10621557,179.45,179.4,6.23404019]
[1754920345075,24.53380509,179.45,179.38,0.06]
[1754920345271,15.10621557,179.43,179.4,9.42758952]
[1754920345503,15.10621557,179.45,179.42,9.42758952]
[1754920345702,15.10621557,179.45,179.43,9.42758952]
[1754920345903,15.67621557,179.45,179.41,0.06]
[1754920346677,46.06,179.45,179.41,9.48758952]
[1754920346879,15.10621557,179.44,179.41,0.72]
[1754920347080,15.10621557,179.45,179.41,0.06]
[1754920347495,6.14265705,179.45,179.41,0.06]
[1754920348097,0.57,179.44,179.41,0.06]
[1754920348283,15.10621557,179.42,179.41,0.06]
[1754920348481,15.10621557,179.42,179.41,9.48758952]
[1754920348880,15.10621557,179.42,179.41,0.06]
[1754920349082,15.10621557,179.42,179.41,9.48758952]
[1754920349381,15.10621557,179.42,179.41,0.06]
[1754920349589,15.10621557,179.42,179.41,9.48758952]
[1754920349789,15.10621557,179.42,179.41,0.06]
[1754920350004,15.10621557,179.42,179.41,9.48758952]
[1754920350500,15.10621557,179.48,179.41,15.72141483]
[1754920350698,0.57,179.51,179.42,0.66]
[1754920351097,6.14078526,179.51,179.43,5.57320403]
[1754920351290,15.10621557,179.49,179.43,5.57320403]
[1754920351807,15.10621557,179.49,179.46,9.42758952]
[1754920352008,15.10621557,179.5,179.48,9.42758952]
[1754920352191,0.57,179.52,179.49,9.42758952]
[1754920352395,15.10621557,179.54,179.49,0.66]
[1754920352606,24.53380509,179.5,179.45,9.42758952]
[1754920352914,15.10621557,179.48,179.45,9.42758952]
[1754920353206,6.14165278,179.48,179.42,0.66]
[1754920353409,15.10621557,179.47,179.43,9.42758952]
[1754920353719,155.10621557,179.47,179.42,0.66]
[1754920354086,155.10621557,179.47,179.44,9.42758952]
[1754920354515,155.10621557,179.47,179.42,0.66]
[1754920354686,155.10621557,179.47,179.44,9.42758952]
[1754920355012,155.67621557,179.47,179.41,0.06]
[1754920355202,15.10621557,179.45,179.41,9.48758952]
[1754920355383,15.10621557,179.45,179.42,9.42758952]
[1754920355583,15.67621557,179.45,179.41,0.06]
[1754920355779,24.53380509,179.45,179.41,0.06]
[1754920355984,24.53380509,179.43,179.41,0.06]
[1754920356180,24.53380509,179.42,179.41,0.06]
[1754920356418,15.67621557,179.42,179.41,0.06]
[1754920356620,15.10621557,179.42,179.41,0.06]
[1754920356788,25.10380509,179.42,179.41,0.06]
[1754920357416,21.24973022,179.42,179.41,0.06]
[1754920357586,30.67731974,179.42,179.41,0.06]
[1754920358410,15.10621557,179.42,179.41,0.06]
[1754920359407,15.10621557,179.41,179.38,0.06]
[1754920359611,24.53380509,179.39,179.38,0.06]
[1754920359991,15.61621557,179.39,179.38,0.06]
[1754920360194,15.10621557,179.39,179.38,0.06]
[1754920360396,15.10621557,179.39,179.38,9.48758952]
[1754920361010,15.10621557,179.39,179.38,10.14758952]
[1754920361211,4.68221656,179.48,179.38,10.14758952]
[1754920361212,5.57196188,179.47,179.38,10.14758952]
[1754920361418,5.57244167,179.46,179.42,9.42758952]
[1754920361600,15.51003119,179.46,179.39,0.66]
[1754920361793,15.10621557,179.44,179.39,0.66]
[1754920362111,15.10621557,179.45,179.39,0.66]
[1754920362314,15.10621557,179.45,179.42,9.42758952]
[1754920362515,0.51,179.51,179.44,9.42758952]
[1754920362703,20.00585772,179.53,179.48,9.42758952]
[1754920362902,15.10621557,179.51,179.45,0.66]
[1754920363301,15.10621557,179.45,179.42,9.42758952]
[1754920363721,15.10621557,179.45,179.41,0.06]
[1754920364011,15.10621557,179.45,179.41,9.48758952]
[1754920364216,15.10621557,179.45,179.41,0.06]
[1754920364424,15.10621557,179.43,179.41,0.72]
[1754920364610,15.10621557,179.43,179.41,9.48758952]
[1754920365214,15.10621557,179.43,179.41,0.06]
[1754920365439,20.67950512,179.43,179.41,0.06]
[1754920366130,15.61621557,179.42,179.41,0.06]
[1754920366312,25.04380509,179.42,179.41,0.06]
[1754920367312,67.12973022,179.42,179.41,0.06]
[1754920367511,76.55731974,179.42,179.41,0.06]
[1754920367742,67.12973022,179.42,179.41,0.06]
[1754920367900,76.55731974,179.42,179.41,0.06]
[1754920368218,67.12973022,179.42,179.41,0.06]
[1754920368522,76.55731974,179.42,179.41,0.06]
[1754920368712,67.12973022,179.42,179.41,0.06]
[1754920369025,76.55731974,179.42,179.41,0.06]
[1754920369325,76.55731974,179.42,179.41,1e-08]
[1754920369326,102.55731974,179.42,179.41,1e-08]
[1754920369617,41.10621557,179.39,179.38,0.06]
[1754920369922,87.04621557,179.39,179.38,0.06]
[1754920370102,87.04621557,179.39,179.36,0.06]
[1754920370103,15.10621557,179.38,179.36,0.06]
[1754920370304,24.53380509,179.37,179.36,0.06]
[1754920370609,25.04380509,179.37,179.36,0.06]
[1754920370803,51.04380509,179.37,179.36,1e-08]
[1754920371123,51.04380509,179.37,179.34,1e-08]
[1754920371124,15.10621557,179.36,179.34,1e-08]
[1754920371326,102.02949508,179.35,179.34,1e-08]
[1754920371523,102.53949508,179.35,179.34,1e-08]
[1754920371902,102.53949508,179.35,179.32,0.06]
[1754920371903,76.53949508,179.35,179.32,1e-08]
[1754920372205,50.53380509,179.33,179.32,1e-08]
[1754920372410,96.45380509,179.33,179.32,1e-08]
[1754920372612,96.96380509,179.33,179.32,1e-08]
[1754920373399,93.11252739,179.33,179.32,1e-08]
[1754920373700,102.03011691,179.33,179.32,1e-08]
[1754920373895,93.11252739,179.33,179.32,1e-08]
[1754920374207,15.10621557,179.28,179.24,0.2]
[1754920374407,15.10621557,179.26,179.24,0.2]
[1754920374601,24.53380509,179.26,179.24,0.2]
[1754920374801,24.53380509,179.25,179.24,0.2]
[1754920375002,61.51621557,179.25,179.24,0.2]
[1754920375212,70.43380509,179.25,179.24,0.2]
[1754920375406,66.58501612,179.25,179.24,0.2]
[1754920375625,76.01260564,179.25,179.24,0.2]
[1754920376006,66.58501612,179.25,179.24,0.2]
[1754920376425,76.52260564,179.25,179.24,0.2]
[1754920377021,66.58501612,179.25,179.24,0.2]
[1754920377332,76.01260564,179.25,179.24,0.2]
[1754920378232,66.58501612,179.25,179.2,0.66]
[1754920378526,61.00621557,179.24,179.16,5.58156688]
[1754920378701,61.00621557,179.24,179.19,0.66]
[1754920379101,61.00621557,179.24,179.2,9.42758952]
[1754920379316,61.00621557,179.24,179.21,9.42758952]
[1754920379527,155.10621557,179.23,179.19,5.58061283]
[1754920379709,155.10621557,179.23,179.21,9.42758952]
[1754920380124,15.10621557,179.23,179.22,10.61106029]
[1754920380529,15.10621557,179.23,179.22,16.19079469]
[1754920380728,5.57662279,179.32,179.22,16.19079469]
[1754920381031,45.9,179.31,179.23,0.66]
[1754920381216,9.42758952,179.28,179.23,0.66]
[1754920381413,15.10621557,179.25,179.24,0.66]
[1754920381617,15.10621557,179.28,179.24,6.2391118]
[1754920381830,15.10621557,179.28,179.27,9.42758952]
[1754920382038,45.9,179.31,179.27,10.08758952]
[1754920382212,15.10621557,179.3,179.28,0.66]
[1754920382406,15.10621557,179.3,179.29,0.66]
[1754920382607,24.53380509,179.3,179.25,0.66]
[1754920382822,15.10621557,179.3,179.25,0.66]
[1754920383023,15.10621557,179.27,179.25,0.66]
[1754920383218,155.10621557,179.26,179.25,10.08758952]
[1754920383448,155.10621557,179.26,179.25,15.66639007]
[1754920383611,15.10621557,179.26,179.25,15.66639007]
[1754920383941,15.10621557,179.3,179.25,6.23880055]
[1754920384157,15.10621557,179.3,179.26,0.66]
[1754920384511,24.53380509,179.3,179.26,0.66]
[1754920384714,15.10621557,179.28,179.24,10.08758952]
[1754920384918,15.10621557,179.28,179.24,0.66]
[1754920385435,15.10621557,179.27,179.25,0.66]
[1754920385639,15.10621557,179.27,179.25,10.08758952]
[1754920385837,15.10621557,179.25,179.22,1.18347077]
[1754920386021,65.89362784,179.27,179.22,0.52347077]
[1754920386212,9.42758952,179.25,179.22,0.52347077]
[1754920386411,15.10621557,179.26,179.22,1.18347077]
[1754920386712,65.38362784,179.27,179.22,0.52347077]
[1754920386713,24.53380509,179.23,179.22,0.52347077]
[1754920386904,60.96621557,179.23,179.22,0.52347077]
[1754920387534,75.97322817,179.23,179.22,0.52347077]
[1754920387734,66.54563865,179.23,179.22,0.52347077]
[1754920387969,76.48322817,179.23,179.22,1e-08]
[1754920388444,15.10621557,179.19,179.18,0.06]
[1754920388605,70.37380509,179.19,179.18,1e-08]
[1754920388811,41.10621557,179.17,179.16,1e-08]
[1754920389035,96.37380509,179.17,179.16,1e-08]
[1754920389229,86.94621557,179.17,179.16,1e-08]
[1754920389536,101.9550966,179.17,179.16,1e-08]
[1754920389916,92.52750708,179.17,179.16,1e-08]
[1754920390136,101.9550966,179.17,179.16,1e-08]
[1754920390432,92.52750708,179.17,179.16,1e-08]
[1754920390632,101.9550966,179.17,179.16,1e-08]
[1754920390833,46.68750708,179.17,179.16,1e-08]
[1754920391046,92.52750708,179.17,179.16,1e-08]
[1754920391744,101.9550966,179.17,179.16,1e-08]
[1754920391923,92.52750708,179.17,179.16,1e-08]
[1754920392128,101.9550966,179.17,179.16,1e-08]
[1754920392521,92.52750708,179.17,179.16,1e-08]
[1754920392723,41.10621557,179.17,179.16,0.66000001]
[1754920393035,41.10621557,179.17,179.16,10.08758953]
[1754920393223,46.68750708,179.17,179.16,10.08758953]
[1754920393413,15.10621557,179.17,179.16,10.08758953]
[1754920393618,5.57950248,179.23,179.16,15.66919256]
[1754920393818,51.39950248,179.23,179.17,0.66]
[1754920394029,45.82,179.23,179.17,0.66]
[1754920394236,15.10621557,179.23,179.22,9.42758952]
[1754920394419,15.10621557,179.23,179.22,10.08758952]
[1754920394628,15.10621557,179.24,179.22,10.08758952]
[1754920394831,15.10621557,179.26,179.23,10.08758952]
[1754920395028,15.10621557,179.26,179.24,10.08758952]
[1754920395434,60.92621557,179.26,179.24,10.08758952]
[1754920395753,15.10621557,179.27,179.25,0.66]
[1754920395927,15.10621557,179.27,179.26,9.42758952]
[1754920396250,15.10621557,179.27,179.24,9.42758952]
[1754920396425,15.10621557,179.27,179.25,0.66]
[1754920396622,15.10621557,179.27,179.26,0.66]
[1754920397151,20.68446006,179.27,179.22,0.66]
[1754920397332,30.11204958,179.27,179.23,0.7]
[1754920397535,15.10621557,179.25,179.23,0.7]
[1754920397767,15.10621557,179.25,179.21,0.7]
[1754920398047,15.10621557,179.23,179.18,0.7]
[1754920398225,24.53380509,179.23,179.16,26.00000001]
[1754920398424,24.53380509,179.23,179.19,0.7]
[1754920398620,15.10621557,179.23,179.17,9.42758952]
[1754920398828,5.5797344,179.22,179.17,10.12758952]
[1754920399030,15.00732392,179.22,179.18,0.7]
[1754920399629,5.5797344,179.22,179.18,0.7]
[1754920400124,5.5797344,179.22,179.19,0.7]